[Event "*** Titled Tuesday Blitz"]
[Site "Chess.com"]
[Date "2020.05.26"]
[Round "4"]
[White "GmSergioBarrientos"]
[Black "SiddharthGMJagadeesh"]
[Result "1-0"]
[WhiteElo "2607"]
[BlackElo "2416"]
[TimeControl "180+1"]
[EndTime "10:40:25 PDT"]
[Termination "GmSergioBarrientos won by checkmate"]

1. e4 {[%clk 0:03:00.9]} 1... e5 {[%clk 0:02:59.7]} 2. Nf3 {[%clk 0:02:58.5]}
2... Nc6 {[%clk 0:02:59.7]} 3. Bb5 {[%clk 0:02:58.1]} 3... Nf6 {[%clk 0:02:59]}
4. O-O {[%clk 0:02:56.5]} 4... Nxe4 {[%clk 0:02:58.5]} 5. d4 {[%clk 0:02:55.4]}
5... Nd6 {[%clk 0:02:58.3]} 6. dxe5 {[%clk 0:02:50.3]} 6... Nxb5 {[%clk
0:02:57.8]} 7. a4 {[%clk 0:02:50.5]} 7... d6 {[%clk 0:02:55]} 8. e6 {[%clk
0:02:47.9]} 8... Bxe6 {[%clk 0:02:50.3]} 9. axb5 {[%clk 0:02:47.7]} 9... Ne5
{[%clk 0:02:44.1]} 10. Nd4 {[%clk 0:02:47.4]} 10... Be7 {[%clk 0:02:41.5]} 11.
f4 {[%clk 0:02:43.2]} 11... Bg4 {[%clk 0:02:08.1]} 12. Qe1 {[%clk 0:02:38.3]}
12... Ng6 {[%clk 0:02:00.2]} 13. h3 {[%clk 0:02:26]} 13... Bd7 {[%clk
0:01:57.3]} 14. Nc3 {[%clk 0:02:15.6]} 14... O-O {[%clk 0:01:55]} 15. f5 {[%clk
0:02:10.2]} 15... Ne5 {[%clk 0:01:46.3]} 16. Nd5 {[%clk 0:01:56.6]} 16... Bh4
{[%clk 0:01:41.5]} 17. Qe4 {[%clk 0:01:34.8]} 17... c6 {[%clk 0:01:10.1]} 18. f6
{[%clk 0:01:32.8]} 18... Ng6 {[%clk 0:01:06.9]} 19. Ne7+ {[%clk 0:01:20.7]}
19... Nxe7 {[%clk 0:01:05]} 20. fxg7 {[%clk 0:01:17]} 20... Re8 {[%clk
0:00:49.2]} 21. Qxh4 {[%clk 0:01:16]} 21... c5 {[%clk 0:00:33.7]} 22. Qh5 {[%clk
0:00:48.1]} 22... Ng6 {[%clk 0:00:15.7]} 23. Bg5 {[%clk 0:00:43.9]} 23... Re5
{[%clk 0:00:11.7]} 24. Nf3 {[%clk 0:00:39.3]} 24... Rf5 {[%clk 0:00:06.2]} 25.
Qh6 {[%clk 0:00:35.7]} 25... Qb6 {[%clk 0:00:04.2]} 26. c4 {[%clk 0:00:32.6]}
26... d5 {[%clk 0:00:03.7]} 27. b3 {[%clk 0:00:28.6]} 27... dxc4 {[%clk
0:00:03.7]} 28. bxc4 {[%clk 0:00:28.7]} 28... Be6 {[%clk 0:00:04.3]} 29. Rac1
{[%clk 0:00:24.6]} 29... f6 {[%clk 0:00:03.9]} 30. Be3 {[%clk 0:00:23.5]} 30...
Qc7 {[%clk 0:00:03.3]} 31. Rfe1 {[%clk 0:00:22.9]} 31... Qxg7 {[%clk 0:00:02.7]}
32. Qxg7+ {[%clk 0:00:22.2]} 32... Kxg7 {[%clk 0:00:03.6]} 33. Bf2 {[%clk
0:00:21.8]} 33... Ne5 {[%clk 0:00:03.6]} 34. Nh4 {[%clk 0:00:20.6]} 34... Rh5
{[%clk 0:00:03.4]} 35. Rcd1 {[%clk 0:00:19.6]} 35... Kf7 {[%clk 0:00:02.1]} 36.
Bg3 {[%clk 0:00:19.6]} 36... Ke7 {[%clk 0:00:02.1]} 37. Rf1 {[%clk 0:00:19.4]}
37... Bxc4 {[%clk 0:00:02.4]} 38. Rfe1 {[%clk 0:00:19.2]} 38... Bxb5 {[%clk
0:00:02.8]} 39. Nf3 {[%clk 0:00:19.4]} 39... Kf7 {[%clk 0:00:03]} 40. Bxe5
{[%clk 0:00:19]} 40... fxe5 {[%clk 0:00:03.9]} 41. Nxe5+ {[%clk 0:00:19.7]}
41... Kg7 {[%clk 0:00:03.9]} 42. Ng4 {[%clk 0:00:19.8]} 42... Rf5 {[%clk
0:00:03.5]} 43. Re7+ {[%clk 0:00:19.8]} 43... Rf7 {[%clk 0:00:04.1]} 44. Re5
{[%clk 0:00:20.2]} 44... Raf8 {[%clk 0:00:03.5]} 45. Rxc5 {[%clk 0:00:20]} 45...
Rf1+ {[%clk 0:00:03.8]} 46. Rxf1 {[%clk 0:00:20.2]} 46... Rxf1+ {[%clk
0:00:04.7]} 47. Kh2 {[%clk 0:00:21.1]} 47... Rb1 {[%clk 0:00:05]} 48. Rc7+
{[%clk 0:00:20.1]} 48... Kg6 {[%clk 0:00:05.5]} 49. Ne5+ {[%clk 0:00:20.1]}
49... Kf5 {[%clk 0:00:05.3]} 50. Nf3 {[%clk 0:00:20.3]} 50... Bc6 {[%clk
0:00:04.4]} 51. Nd4+ {[%clk 0:00:20.4]} 51... Ke5 {[%clk 0:00:04.9]} 52. Nxc6+
{[%clk 0:00:21.3]} 52... bxc6 {[%clk 0:00:05.6]} 53. Rxa7 {[%clk 0:00:21.1]}
53... h6 {[%clk 0:00:04.7]} 54. Rh7 {[%clk 0:00:21.1]} 54... c5 {[%clk
0:00:04.8]} 55. Rxh6 {[%clk 0:00:21.5]} 55... c4 {[%clk 0:00:05.4]} 56. Rh5+
{[%clk 0:00:21.6]} 56... Kd4 {[%clk 0:00:05.9]} 57. Rh8 {[%clk 0:00:21.8]} 57...
c3 {[%clk 0:00:06.1]} 58. Rd8+ {[%clk 0:00:22.7]} 58... Ke3 {[%clk 0:00:06.5]}
59. Re8+ {[%clk 0:00:22.4]} 59... Kd2 {[%clk 0:00:07]} 60. Rd8+ {[%clk
0:00:22.7]} 60... Ke2 {[%clk 0:00:07.6]} 61. Re8+ {[%clk 0:00:21]} 61... Kd1
{[%clk 0:00:08.1]} 62. h4 {[%clk 0:00:21.4]} 62... c2 {[%clk 0:00:08]} 63. Rd8+
{[%clk 0:00:21.7]} 63... Kc1 {[%clk 0:00:07.5]} 64. h5 {[%clk 0:00:21.1]} 64...
Rb4 {[%clk 0:00:05.9]} 65. g4 {[%clk 0:00:18.6]} 65... Rxg4 {[%clk 0:00:05.6]}
66. Kh3 {[%clk 0:00:18.4]} 66... Rc4 {[%clk 0:00:05.5]} 67. h6 {[%clk
0:00:18.7]} 67... Kb2 {[%clk 0:00:04.4]} 68. Rb8+ {[%clk 0:00:18.6]} 68... Kc3
{[%clk 0:00:04.8]} 69. h7 {[%clk 0:00:17]} 69... c1=Q {[%clk 0:00:04.6]} 70.
h8=Q+ {[%clk 0:00:16.9]} 70... Kc2 {[%clk 0:00:04.8]} 71. Qh7+ {[%clk
0:00:16.6]} 71... Kd2 {[%clk 0:00:04.6]} 72. Qh6+ {[%clk 0:00:14.1]} 72... Ke2
{[%clk 0:00:03.8]} 73. Re8+ {[%clk 0:00:13.1]} 73... Kf2 {[%clk 0:00:04]} 74.
Qf6+ {[%clk 0:00:10.9]} 74... Qf4 {[%clk 0:00:03]} 75. Qb6+ {[%clk 0:00:07.5]}
75... Rd4 {[%clk 0:00:02.9]} 76. Qb2+ {[%clk 0:00:06.9]} 76... Kf3 {[%clk
0:00:02.9]} 77. Qe2# {[%clk 0:00:06.8]} 1-0

[Event "*** Titled Tuesday Blitz"]
[Site "Chess.com"]
[Date "2020.05.26"]
[Round "4"]
[White "DinaBelenkaya"]
[Black "awesomevishesh"]
[Result "1-0"]
[WhiteElo "2258"]
[BlackElo "2407"]
[TimeControl "180+1"]
[EndTime "10:40:27 PDT"]
[Termination "DinaBelenkaya won by checkmate"]

1. e4 {[%clk 0:03:00.9]} 1... c5 {[%clk 0:02:59.6]} 2. Nf3 {[%clk 0:02:58.7]}
2... d6 {[%clk 0:02:59.5]} 3. d4 {[%clk 0:02:55.4]} 3... cxd4 {[%clk 0:02:59.5]}
4. Nxd4 {[%clk 0:02:56.3]} 4... Nf6 {[%clk 0:02:59.5]} 5. Nc3 {[%clk 0:02:56.7]}
5... a6 {[%clk 0:02:59.7]} 6. Be2 {[%clk 0:02:56.9]} 6... e5 {[%clk 0:02:58.7]}
7. Nf3 {[%clk 0:02:55.3]} 7... Be7 {[%clk 0:02:58.7]} 8. Bg5 {[%clk 0:02:54.3]}
8... Nbd7 {[%clk 0:02:57.8]} 9. O-O {[%clk 0:02:54.2]} 9... h6 {[%clk
0:02:57.3]} 10. Bxf6 {[%clk 0:02:53.5]} 10... Nxf6 {[%clk 0:02:57.1]} 11. a4
{[%clk 0:02:47.9]} 11... O-O {[%clk 0:02:56.1]} 12. a5 {[%clk 0:02:44.6]} 12...
Be6 {[%clk 0:02:53.3]} 13. Qd2 {[%clk 0:02:43.5]} 13... Qc7 {[%clk 0:02:45.7]}
14. Rfe1 {[%clk 0:02:14.1]} 14... Rfd8 {[%clk 0:02:33.5]} 15. Bf1 {[%clk
0:01:45.9]} 15... Rac8 {[%clk 0:02:18.5]} 16. Qe2 {[%clk 0:01:33.4]} 16... Bf8
{[%clk 0:01:54]} 17. Nd2 {[%clk 0:01:28.6]} 17... d5 {[%clk 0:01:43]} 18. exd5
{[%clk 0:01:28.3]} 18... Nxd5 {[%clk 0:01:43]} 19. Nxd5 {[%clk 0:01:24.6]} 19...
Rxd5 {[%clk 0:01:40.2]} 20. c4 {[%clk 0:01:01]} 20... Rxa5 {[%clk 0:01:22.3]}
21. Rxa5 {[%clk 0:00:50]} 21... Qxa5 {[%clk 0:01:22]} 22. b3 {[%clk 0:00:42.9]}
22... Rd8 {[%clk 0:01:12.6]} 23. Nf3 {[%clk 0:00:41.8]} 23... f6 {[%clk
0:01:06.5]} 24. Qe4 {[%clk 0:00:41.2]} 24... Rd7 {[%clk 0:00:58.2]} 25. Bd3
{[%clk 0:00:37.4]} 25... Bb4 {[%clk 0:00:13.7]} 26. Qh7+ {[%clk 0:00:34.1]}
26... Kf8 {[%clk 0:00:13.6]} 27. Qh8+ {[%clk 0:00:15.8]} 27... Kf7 {[%clk
0:00:12.3]} 28. Rd1 {[%clk 0:00:09.1]} 28... e4 {[%clk 0:00:11.3]} 29. Be2
{[%clk 0:00:05.2]} 29... Rxd1+ {[%clk 0:00:11.1]} 30. Bxd1 {[%clk 0:00:05.4]}
30... Qa1 {[%clk 0:00:08.9]} 31. Qd8 {[%clk 0:00:05.1]} 31... exf3 {[%clk
0:00:08.9]} 32. gxf3 {[%clk 0:00:03.8]} 32... Qc1 {[%clk 0:00:08.3]} 33. Kg2
{[%clk 0:00:02.5]} 33... Qg5+ {[%clk 0:00:07.9]} 34. Kh1 {[%clk 0:00:02.7]}
34... Qd2 {[%clk 0:00:07.3]} 35. Qc7+ {[%clk 0:00:01.7]} 35... Kg6 {[%clk
0:00:07.4]} 36. Bc2+ {[%clk 0:00:01.8]} 36... Qxc2 {[%clk 0:00:07.3]} 37. Qb6
{[%clk 0:00:01.9]} 37... Qd1+ {[%clk 0:00:07.2]} 38. Kg2 {[%clk 0:00:01.8]}
38... Be1 {[%clk 0:00:07]} 39. Qxe6 {[%clk 0:00:01.1]} 39... Qd2 {[%clk
0:00:07]} 40. Qe4+ {[%clk 0:00:01.4]} 40... Kf7 {[%clk 0:00:06.8]} 41. h4 {[%clk
0:00:02.1]} 41... Qxf2+ {[%clk 0:00:06.8]} 42. Kh3 {[%clk 0:00:02.1]} 42... Qf1+
{[%clk 0:00:07]} 43. Kg4 {[%clk 0:00:01.8]} 43... Qg2+ {[%clk 0:00:06.7]} 44.
Kh5 {[%clk 0:00:02.3]} 44... g6+ {[%clk 0:00:05.8]} 45. Kxh6 {[%clk 0:00:02.4]}
45... Bd2+ {[%clk 0:00:03.5]} 46. Kh7 {[%clk 0:00:02.2]} 46... Qg3 {[%clk
0:00:02.4]} 47. Qd5+ {[%clk 0:00:02.4]} 47... Ke7 {[%clk 0:00:02.3]} 48. Qxd2
{[%clk 0:00:02.4]} 48... Qxh4+ {[%clk 0:00:02.2]} 49. Kxg6 {[%clk 0:00:02.8]}
49... Qg3+ {[%clk 0:00:02.4]} 50. Kh7 {[%clk 0:00:03.1]} 50... Qh3+ {[%clk
0:00:02.3]} 51. Kg6 {[%clk 0:00:03.1]} 51... Qxf3 {[%clk 0:00:01.8]} 52. Qe1+
{[%clk 0:00:02.5]} 52... Kd6 {[%clk 0:00:02.2]} 53. Qd2+ {[%clk 0:00:02.9]}
53... Kc5 {[%clk 0:00:02.3]} 54. Qa5+ {[%clk 0:00:02.9]} 54... Kc6 {[%clk
0:00:02.5]} 55. Qa4+ {[%clk 0:00:02.6]} 55... Kb6 {[%clk 0:00:02.5]} 56. Qb4+
{[%clk 0:00:03]} 56... Kc6 {[%clk 0:00:02.6]} 57. Qa4+ {[%clk 0:00:03.1]} 57...
Kc7 {[%clk 0:00:03.1]} 58. Qa5+ {[%clk 0:00:03.4]} 58... Kd7 {[%clk 0:00:03.4]}
59. Qb4 {[%clk 0:00:03.2]} 59... Qf2 {[%clk 0:00:02.5]} 60. Qxb7+ {[%clk
0:00:02.6]} 60... Ke6 {[%clk 0:00:03]} 61. Qc6+ {[%clk 0:00:02.8]} 61... Ke5
{[%clk 0:00:03.4]} 62. Qd5+ {[%clk 0:00:02.9]} 62... Kf4 {[%clk 0:00:03.6]} 63.
Kxf6 {[%clk 0:00:03.2]} 63... Ke3+ {[%clk 0:00:03.5]} 64. Ke6 {[%clk 0:00:02.8]}
64... Qf1 {[%clk 0:00:02.4]} 65. Qe5+ {[%clk 0:00:02.7]} 65... Kd2 {[%clk
0:00:02.5]} 66. Qd5+ {[%clk 0:00:03]} 66... Kc3 {[%clk 0:00:02.7]} 67. c5 {[%clk
0:00:02.7]} 67... Qe2+ {[%clk 0:00:02.6]} 68. Kd6 {[%clk 0:00:02.9]} 68... Qh5
{[%clk 0:00:02.2]} 69. Qxh5 {[%clk 0:00:02.1]} 69... Kxb3 {[%clk 0:00:02.3]} 70.
Qh3+ {[%clk 0:00:02.3]} 70... Kb4 {[%clk 0:00:02.5]} 71. c6 {[%clk 0:00:03.2]}
71... Kb5 {[%clk 0:00:03]} 72. c7 {[%clk 0:00:04.1]} 72... Kb6 {[%clk
0:00:03.8]} 73. c8=Q {[%clk 0:00:05]} 73... Ka7 {[%clk 0:00:04.4]} 74. Qc7+
{[%clk 0:00:05.2]} 74... Ka8 {[%clk 0:00:03.8]} 75. Qhc8# {[%clk 0:00:06.1]} 1-0

[Event "*** Titled Tuesday Blitz"]
[Site "Chess.com"]
[Date "2020.05.26"]
[Round "4"]
[White "Gurvich_Vitaly"]
[Black "Vaathi_Coming"]
[Result "0-1"]
[WhiteElo "2544"]
[BlackElo "2856"]
[TimeControl "180+1"]
[EndTime "10:40:28 PDT"]
[Termination "Vaathi_Coming won by resignation"]

1. e4 {[%clk 0:02:57.5]} 1... c5 {[%clk 0:03:00.2]} 2. Nf3 {[%clk 0:02:57.1]}
2... Nc6 {[%clk 0:03:00.5]} 3. d4 {[%clk 0:02:56.6]} 3... cxd4 {[%clk
0:03:01.4]} 4. Nxd4 {[%clk 0:02:57.3]} 4... Nf6 {[%clk 0:03:01.9]} 5. Nc3 {[%clk
0:02:56.9]} 5... e5 {[%clk 0:03:02.6]} 6. Ndb5 {[%clk 0:02:57.1]} 6... d6 {[%clk
0:03:03.1]} 7. Bg5 {[%clk 0:02:57.3]} 7... a6 {[%clk 0:03:03.5]} 8. Na3 {[%clk
0:02:57.1]} 8... Be6 {[%clk 0:03:03.6]} 9. Bxf6 {[%clk 0:02:52.8]} 9... Qxf6
{[%clk 0:02:56.3]} 10. Nd5 {[%clk 0:02:53]} 10... Qd8 {[%clk 0:02:55.7]} 11. Nc4
{[%clk 0:02:52.7]} 11... b5 {[%clk 0:02:55.3]} 12. Nce3 {[%clk 0:02:47.2]} 12...
g6 {[%clk 0:02:55]} 13. h4 {[%clk 0:02:46.1]} 13... h5 {[%clk 0:02:52.7]} 14. c3
{[%clk 0:02:39.3]} 14... Bh6 {[%clk 0:02:52.4]} 15. g3 {[%clk 0:02:38.1]} 15...
O-O {[%clk 0:02:50.8]} 16. Bg2 {[%clk 0:02:38.1]} 16... Ne7 {[%clk 0:02:44.9]}
17. O-O {[%clk 0:02:06.3]} 17... Nxd5 {[%clk 0:02:39.2]} 18. Nxd5 {[%clk
0:02:07.2]} 18... Rb8 {[%clk 0:02:37.3]} 19. a4 {[%clk 0:01:59]} 19... bxa4
{[%clk 0:02:31.2]} 20. Rxa4 {[%clk 0:01:59.9]} 20... Rxb2 {[%clk 0:02:30.2]} 21.
Rxa6 {[%clk 0:01:59.5]} 21... Rd2 {[%clk 0:02:30.1]} 22. Qa4 {[%clk 0:01:51.7]}
22... Bxd5 {[%clk 0:02:23.1]} 23. exd5 {[%clk 0:01:52.6]} 23... Qf6 {[%clk
0:02:11.6]} 24. Qc6 {[%clk 0:00:48.7]} 24... Rd8 {[%clk 0:02:08.3]} 25. c4
{[%clk 0:00:40.7]} 25... e4 {[%clk 0:01:42.7]} 26. Bxe4 {[%clk 0:00:35]} 26...
Qd4 {[%clk 0:01:40]} 27. Bg2 {[%clk 0:00:29.1]} 27... Bg7 {[%clk 0:01:14.1]} 28.
Ra8 {[%clk 0:00:17.1]} 28... Rxa8 {[%clk 0:01:11.5]} 29. Qxa8+ {[%clk 0:00:18]}
29... Kh7 {[%clk 0:01:12]} 30. Qe8 {[%clk 0:00:16.7]} 30... f5 {[%clk
0:00:58.4]} 31. Qe6 {[%clk 0:00:13.2]} 31... Qc5 {[%clk 0:00:57.6]} 32. Bf3
{[%clk 0:00:09.1]} 32... Bd4 {[%clk 0:00:39.5]} 33. Qf7+ {[%clk 0:00:08.3]}
33... Kh6 {[%clk 0:00:39.7]} 34. Qf8+ {[%clk 0:00:08.1]} 34... Bg7 {[%clk
0:00:39.8]} 35. Qe7 {[%clk 0:00:06.3]} 35... Kh7 {[%clk 0:00:29.8]} 36. Kg2
{[%clk 0:00:04.3]} 36... Rc2 {[%clk 0:00:27.1]} 37. Qe6 {[%clk 0:00:02.6]} 37...
Rxc4 {[%clk 0:00:24.3]} 38. Bxh5 {[%clk 0:00:02.3]} 38... gxh5 {[%clk
0:00:18.5]} 39. Qxf5+ {[%clk 0:00:02.7]} 39... Kg8 {[%clk 0:00:18.3]} 40. Qe6+
{[%clk 0:00:02.3]} 40... Kf8 {[%clk 0:00:13.7]} 41. Qf5+ {[%clk 0:00:02.3]}
41... Ke7 {[%clk 0:00:10.6]} 42. Re1+ {[%clk 0:00:02.4]} 42... Be5 {[%clk
0:00:10.4]} 43. Qe6+ {[%clk 0:00:02.8]} 43... Kd8 {[%clk 0:00:10]} 44. Rb1
{[%clk 0:00:03.3]} 44... Rb4 {[%clk 0:00:08.5]} 45. Rf1 {[%clk 0:00:02.9]} 45...
Rb2 {[%clk 0:00:08.1]} 46. Qg8+ {[%clk 0:00:02.7]} 46... Kc7 {[%clk 0:00:08.2]}
47. Qf7+ {[%clk 0:00:02.9]} 47... Kb6 {[%clk 0:00:08.5]} 48. Qxh5 {[%clk
0:00:02.5]} 48... Qxd5+ {[%clk 0:00:09]} 49. Kg1 {[%clk 0:00:03]} 49... Qc5
{[%clk 0:00:06.8]} 50. Qf3 {[%clk 0:00:02.9]} 50... Bd4 {[%clk 0:00:06.2]} 51.
h5 {[%clk 0:00:02.7]} 51... d5 {[%clk 0:00:05.7]} 52. h6 {[%clk 0:00:02.6]}
52... Be5 {[%clk 0:00:05.6]} 53. Kg2 {[%clk 0:00:02.8]} 53... d4 {[%clk
0:00:05.9]} 54. h7 {[%clk 0:00:03.1]} 54... Qc6 {[%clk 0:00:06]} 55. Qxc6+
{[%clk 0:00:03.1]} 55... Kxc6 {[%clk 0:00:06.9]} 56. Kf3 {[%clk 0:00:03.6]}
56... Kd5 {[%clk 0:00:06.8]} 57. Rh1 {[%clk 0:00:04]} 57... Rb3+ {[%clk
0:00:07.2]} 58. Kg4 {[%clk 0:00:03.6]} 58... Rb8 {[%clk 0:00:07.8]} 59. f4
{[%clk 0:00:03.2]} 59... Bh8 {[%clk 0:00:08.4]} 60. Kf5 {[%clk 0:00:03.2]} 60...
d3 {[%clk 0:00:08.6]} 61. g4 {[%clk 0:00:03.6]} 61... Rf8+ {[%clk 0:00:08.3]}
62. Kg5 {[%clk 0:00:03.2]} 62... Ke4 {[%clk 0:00:07.9]} 63. f5 {[%clk 0:00:03]}
63... d2 {[%clk 0:00:08.4]} 64. Rd1 {[%clk 0:00:02.6]} 64... Ke3 {[%clk
0:00:07.4]} 65. Kg6 {[%clk 0:00:02.7]} 65... Rf6+ {[%clk 0:00:07.8]} 66. Kh5
{[%clk 0:00:02.3]} 66... Ke2 {[%clk 0:00:08.2]} 67. Rb1 {[%clk 0:00:01.9]} 67...
d1=Q {[%clk 0:00:08.1]} 68. Rxd1 {[%clk 0:00:02.2]} 68... Kxd1 {[%clk 0:00:09]}
69. Kg5 {[%clk 0:00:02.4]} 69... Rf8 {[%clk 0:00:08.3]} 70. Kf4 {[%clk
0:00:03.3]} 70... Rf7 {[%clk 0:00:06.4]} 71. g5 {[%clk 0:00:04.2]} 71... Rxh7
{[%clk 0:00:06.9]} 72. f6 {[%clk 0:00:04.5]} 72... Rb7 {[%clk 0:00:05.2]} 73.
Kf5 {[%clk 0:00:04.5]} 73... Rb6 {[%clk 0:00:05.5]} 74. f7 {[%clk 0:00:03.5]}
74... Bg7 {[%clk 0:00:05.7]} 75. g6 {[%clk 0:00:01.8]} 75... Ke2 {[%clk
0:00:06.1]} 0-1

[Event "*** Titled Tuesday Blitz"]
[Site "Chess.com"]
[Date "2020.05.26"]
[Round "4"]
[White "dopolian"]
[Black "theblitzchamp"]
[Result "1/2-1/2"]
[WhiteElo "2330"]
[BlackElo "2678"]
[TimeControl "180+1"]
[EndTime "10:40:30 PDT"]
[Termination "Game drawn by repetition"]

1. e4 {[%clk 0:03:00.9]} 1... e5 {[%clk 0:02:59.3]} 2. Nf3 {[%clk 0:03:01.1]}
2... d6 {[%clk 0:02:59.6]} 3. d4 {[%clk 0:03:00.5]} 3... Nf6 {[%clk 0:02:58.8]}
4. dxe5 {[%clk 0:02:47.2]} 4... Nxe4 {[%clk 0:02:58.7]} 5. Bd3 {[%clk
0:02:47.3]} 5... Nc5 {[%clk 0:02:58.7]} 6. Bb5+ {[%clk 0:02:39.8]} 6... c6
{[%clk 0:02:55.5]} 7. Be2 {[%clk 0:02:39]} 7... Be7 {[%clk 0:02:53.6]} 8. exd6
{[%clk 0:02:38.7]} 8... Qxd6 {[%clk 0:02:53.3]} 9. Qxd6 {[%clk 0:02:38.3]} 9...
Bxd6 {[%clk 0:02:54.2]} 10. O-O {[%clk 0:02:34.4]} 10... O-O {[%clk 0:02:53.9]}
11. Be3 {[%clk 0:02:31.7]} 11... Bf5 {[%clk 0:02:53.2]} 12. c3 {[%clk
0:02:27.6]} 12... Nbd7 {[%clk 0:02:48.4]} 13. Rd1 {[%clk 0:02:24]} 13... Bc7
{[%clk 0:02:47.8]} 14. Nbd2 {[%clk 0:02:11.5]} 14... Rad8 {[%clk 0:02:46.4]} 15.
Nb3 {[%clk 0:02:01.3]} 15... Nxb3 {[%clk 0:02:43.8]} 16. axb3 {[%clk 0:02:02.2]}
16... a6 {[%clk 0:02:44.1]} 17. b4 {[%clk 0:02:01.4]} 17... h6 {[%clk
0:02:42.3]} 18. Nd4 {[%clk 0:01:57.2]} 18... Bg6 {[%clk 0:02:41.7]} 19. Nf3
{[%clk 0:01:47]} 19... Nf6 {[%clk 0:02:41.1]} 20. Rxd8 {[%clk 0:01:43.7]} 20...
Rxd8 {[%clk 0:02:40.3]} 21. Rd1 {[%clk 0:01:44.4]} 21... Rxd1+ {[%clk
0:02:39.8]} 22. Bxd1 {[%clk 0:01:45.3]} 22... Kf8 {[%clk 0:02:40.4]} 23. Kf1
{[%clk 0:01:45]} 23... Ke7 {[%clk 0:02:40.5]} 24. Bd4 {[%clk 0:01:43.1]} 24...
Ne8 {[%clk 0:02:33.4]} 25. Be2 {[%clk 0:01:40.7]} 25... f6 {[%clk 0:02:30.2]}
26. Bc5+ {[%clk 0:01:40.5]} 26... Kd7 {[%clk 0:02:29.3]} 27. Nh4 {[%clk
0:01:33.4]} 27... Bf7 {[%clk 0:02:28.6]} 28. Bg4+ {[%clk 0:01:31.6]} 28... Be6
{[%clk 0:02:28.8]} 29. Bh5 {[%clk 0:01:27.7]} 29... Nd6 {[%clk 0:02:22.8]} 30.
Ng6 {[%clk 0:01:25.3]} 30... Bc4+ {[%clk 0:02:13.5]} 31. Ke1 {[%clk 0:01:23.3]}
31... Ne4 {[%clk 0:02:06.7]} 32. Nf8+ {[%clk 0:01:14.8]} 32... Kd8 {[%clk
0:02:05.2]} 33. Be3 {[%clk 0:00:57.1]} 33... Bd6 {[%clk 0:02:04.2]} 34. Ng6
{[%clk 0:00:53.9]} 34... Ng5 {[%clk 0:02:01.7]} 35. Nf4 {[%clk 0:00:48.2]} 35...
Kc7 {[%clk 0:01:52.5]} 36. Be2 {[%clk 0:00:47.7]} 36... Bf7 {[%clk 0:01:51.2]}
37. h3 {[%clk 0:00:43.8]} 37... Ne4 {[%clk 0:01:46.8]} 38. Bd3 {[%clk
0:00:42.5]} 38... Ng5 {[%clk 0:01:44.7]} 39. Ne2 {[%clk 0:00:40.3]} 39... Bd5
{[%clk 0:01:42.2]} 40. f3 {[%clk 0:00:37.9]} 40... Nf7 {[%clk 0:01:38]} 41. Bf4
{[%clk 0:00:37.1]} 41... Ne5 {[%clk 0:01:36.9]} 42. Bc2 {[%clk 0:00:35.9]} 42...
Bc4 {[%clk 0:01:35.2]} 43. Kd2 {[%clk 0:00:35.8]} 43... Bf7 {[%clk 0:01:21.1]}
44. b3 {[%clk 0:00:31.9]} 44... Be6 {[%clk 0:01:09.8]} 45. Be3 {[%clk
0:00:31.5]} 45... Bd7 {[%clk 0:01:02.8]} 46. Nd4 {[%clk 0:00:29.7]} 46... Bf8
{[%clk 0:01:00.3]} 47. Bf5 {[%clk 0:00:27.8]} 47... Nf7 {[%clk 0:00:52.2]} 48.
Ne6+ {[%clk 0:00:25]} 48... Bxe6 {[%clk 0:00:51.9]} 49. Bxe6 {[%clk 0:00:25.9]}
49... Ne5 {[%clk 0:00:52.1]} 50. Bf4 {[%clk 0:00:23]} 50... Kd6 {[%clk
0:00:51.5]} 51. Bxe5+ {[%clk 0:00:23.2]} 51... Kxe5 {[%clk 0:00:50.9]} 52. Bc8
{[%clk 0:00:21.6]} 52... b6 {[%clk 0:00:46.3]} 53. Bxa6 {[%clk 0:00:21.5]} 53...
c5 {[%clk 0:00:45.1]} 54. bxc5 {[%clk 0:00:19.2]} 54... Bxc5 {[%clk 0:00:44.7]}
55. Bb7 {[%clk 0:00:19.1]} 55... Kf4 {[%clk 0:00:44.5]} 56. Ke2 {[%clk
0:00:18.2]} 56... g5 {[%clk 0:00:41.4]} 57. b4 {[%clk 0:00:16.5]} 57... Bd6
{[%clk 0:00:41.4]} 58. b5 {[%clk 0:00:16.2]} 58... Bc5 {[%clk 0:00:40.9]} 59. c4
{[%clk 0:00:16.3]} 59... h5 {[%clk 0:00:39.8]} 60. Bd5 {[%clk 0:00:16]} 60... h4
{[%clk 0:00:39.7]} 61. Kf1 {[%clk 0:00:13.8]} 61... Ke3 {[%clk 0:00:39.7]} 62.
Kg1 {[%clk 0:00:13.8]} 62... Ke2+ {[%clk 0:00:38.9]} 63. Kh1 {[%clk 0:00:14.1]}
63... Kf2 {[%clk 0:00:36.5]} 64. Be6 {[%clk 0:00:14]} 64... Bd6 {[%clk
0:00:36.1]} 65. Bd5 {[%clk 0:00:14.4]} 65... Bf4 {[%clk 0:00:35.1]} 66. Be6
{[%clk 0:00:14.9]} 66... Bg3 {[%clk 0:00:35.3]} 67. Bd5 {[%clk 0:00:15.3]} 67...
Kf1 {[%clk 0:00:35.3]} 68. Be6 {[%clk 0:00:15.8]} 68... Bf2 {[%clk 0:00:35.7]}
69. Bd5 {[%clk 0:00:16.3]} 69... Ke2 {[%clk 0:00:36.1]} 70. Be6 {[%clk
0:00:16.8]} 70... Ke3 {[%clk 0:00:36.7]} 71. Bd5 {[%clk 0:00:15.8]} 71... Kf4
{[%clk 0:00:36.5]} 72. Be6 {[%clk 0:00:16.2]} 72... Ke5 {[%clk 0:00:36.7]} 73.
Bd5 {[%clk 0:00:16.7]} 73... f5 {[%clk 0:00:37.1]} 74. Kh2 {[%clk 0:00:17]}
74... Kf4 {[%clk 0:00:36.2]} 75. Kh1 {[%clk 0:00:17.2]} 75... Kg3 {[%clk
0:00:33.2]} 76. Be6 {[%clk 0:00:17]} 76... Kf4 {[%clk 0:00:32.8]} 77. Bd5 {[%clk
0:00:17.4]} 77... Bc5 {[%clk 0:00:33.7]} 78. Be6 {[%clk 0:00:17.5]} 78... Bd4
{[%clk 0:00:31.2]} 79. Bd5 {[%clk 0:00:17.6]} 79... g4 {[%clk 0:00:24.4]} 80.
fxg4 {[%clk 0:00:17.4]} 80... fxg4 {[%clk 0:00:25.3]} 81. hxg4 {[%clk
0:00:17.8]} 81... Kxg4 {[%clk 0:00:26.2]} 82. Kh2 {[%clk 0:00:17.6]} 82... Be3
{[%clk 0:00:25.3]} 83. Kh1 {[%clk 0:00:17.7]} 83... Kg3 {[%clk 0:00:25.2]} 84.
Bf3 {[%clk 0:00:17]} 84... h3 {[%clk 0:00:24]} 85. Bd5 {[%clk 0:00:17.9]} 85...
h2 {[%clk 0:00:20.2]} 86. Bf7 {[%clk 0:00:17.3]} 86... Bf4 {[%clk 0:00:20.3]}
87. Bd5 {[%clk 0:00:18]} 87... Kf2 {[%clk 0:00:20.4]} 88. Bg8 {[%clk 0:00:18.4]}
88... Bg3 {[%clk 0:00:21]} 89. Bd5 {[%clk 0:00:19.3]} 89... Ke3 {[%clk
0:00:21.9]} 90. Bg8 {[%clk 0:00:19.6]} 90... Kd4 {[%clk 0:00:22.8]} 91. Bd5
{[%clk 0:00:19.9]} 91... Kc5 {[%clk 0:00:23.7]} 92. Bg8 {[%clk 0:00:20.1]} 92...
Kd6 {[%clk 0:00:24]} 93. Bd5 {[%clk 0:00:21]} 93... Kc5 {[%clk 0:00:24.9]} 94.
Bg8 {[%clk 0:00:21.1]} 94... Kd4 {[%clk 0:00:25.2]} 95. Bd5 {[%clk 0:00:22]}
95... Kc5 {[%clk 0:00:25.5]} 1/2-1/2